[Event "Titled Tuesday Blitz May 2 Late 2023"]
[White "Nazaretyan, Tigran"]
[Black "Toktomushev, Teimur"]
[WhiteFideId "24162345"]
[BlackFideId "14176726"]
[WhiteElo "2111"]
[BlackElo "2116"]
[Result "0-1"]
[Round "05"]
[TimeControl "180+2"]
[Date "2023.05.02"]
[WhiteClock "0:00:08"]
[BlackClock "0:00:05"]

1. d4 {[%clk 0:02:59]}  d5 {[%clk 0:03:00]} 2. c4 {[%clk 0:02:56]}  e6 {[%clk 0:03:00]} 3. Nf3 {[%clk 0:02:56]}  Nf6 {[%clk 0:03:00]} 4. Nc3 {[%clk 0:02:55]}  Be7 {[%clk 0:03:00]} 5. Bf4 {[%clk 0:02:55]}  O-O {[%clk 0:03:00]} 6. e3 {[%clk 0:02:55]}  b6 {[%clk 0:03:00]} 7. Bd3 {[%clk 0:02:53]}  Bb7 {[%clk 0:03:00]} 8. O-O {[%clk 0:02:52]}  c5 {[%clk 0:02:53]} 9. dxc5 {[%clk 0:02:48]}  Bxc5 {[%clk 0:02:36]} 10. Qe2 {[%clk 0:02:44]}  Nbd7 {[%clk 0:02:28]} 11. Rfd1 {[%clk 0:02:38]}  h6 {[%clk 0:01:59]} 12. a3 {[%clk 0:02:29]}  Re8 {[%clk 0:01:36]} 13. cxd5 {[%clk 0:02:06]}  Nxd5 {[%clk 0:01:16]} 14. Nxd5 {[%clk 0:02:05]}  Bxd5 {[%clk 0:01:17]} 15. e4 {[%clk 0:02:02]}  Bc6 {[%clk 0:01:17]} 16. b4 {[%clk 0:01:42]}  Bf8 {[%clk 0:00:57]} 17. Bb5 {[%clk 0:01:41]}  Rc8 {[%clk 0:00:36]} 18. Ne5 {[%clk 0:01:38]}  Bxb5 {[%clk 0:00:17]} 19. Qxb5 {[%clk 0:01:37]}  Qf6 {[%clk 0:00:18]} 20. Rxd7 {[%clk 0:01:19]}  Qxf4 {[%clk 0:00:18]} 21. Nxf7 {[%clk 0:00:55]}  Qxe4 {[%clk 0:00:09]} 22. h3 {[%clk 0:00:42]}  Qf5 {[%clk 0:00:06]} 23. Ne5 {[%clk 0:00:35]}  Rc2 {[%clk 0:00:04]} 24. Rf1 {[%clk 0:00:34]}  Rec8 {[%clk 0:00:03]} 25. Rf7 {[%clk 0:00:32]}  Qe4 {[%clk 0:00:01]} 26. Ng4 {[%clk 0:00:26]}  a6 {[%clk 0:00:02]} 27. Qd7 {[%clk 0:00:25]}  R2c7 {[%clk 0:00:01]} 28. Qxc7 {[%clk 0:00:22]}  Rxc7 {[%clk 0:00:02]} 29. Rxc7 {[%clk 0:00:23]}  Qd3 {[%clk 0:00:01]} 30. a4 {[%clk 0:00:18]}  Qb3 {[%clk 0:00:01]} 31. b5 {[%clk 0:00:16]}  axb5 {[%clk 0:00:01]} 32. axb5 {[%clk 0:00:16]}  Qxb5 {[%clk 0:00:02]} 33. Rd1 {[%clk 0:00:16]}  Bc5 {[%clk 0:00:02]} 34. Rd8+ {[%clk 0:00:15]}  Kh7 {[%clk 0:00:03]} 35. Rdd7 {[%clk 0:00:15]}  Qb1+ {[%clk 0:00:02]} 36. Kh2 {[%clk 0:00:15]}  Qg6 {[%clk 0:00:02]} 37. Ne5 {[%clk 0:00:13]}  Qg5 {[%clk 0:00:01]} 38. Nf3 {[%clk 0:00:11]}  Qf4+ {[%clk 0:00:02]} 39. Kh1 {[%clk 0:00:11]}  Qc1+ {[%clk 0:00:02]} 40. Kh2 {[%clk 0:00:11]}  Bd6+ {[%clk 0:00:02]} 41. Rxd6 {[%clk 0:00:07]}  Qxc7 {[%clk 0:00:01]} 42. g3 {[%clk 0:00:06]}  Qxd6 {[%clk 0:00:02]} 43. Kg2 {[%clk 0:00:06]}  Qc6 {[%clk 0:00:03]} 44. g4 {[%clk 0:00:06]}  b5 {[%clk 0:00:03]} 45. Kg3 {[%clk 0:00:07]}  b4 {[%clk 0:00:04]} 46. Ne5 {[%clk 0:00:07]}  Qc7 {[%clk 0:00:04]} 47. f4 {[%clk 0:00:07]}  b3 {[%clk 0:00:05]} 48. Kh4 {[%clk 0:00:06]}  b2 {[%clk 0:00:06]} 49. Kh5 {[%clk 0:00:07]}  b1=Q {[%clk 0:00:05]} 50. Ng6 {[%clk 0:00:07]}  Qxg6+ {[%clk 0:00:05]} 51. Kh4 {[%clk 0:00:08]}  Qc1 {[%clk 0:00:04]} 52. f5 {[%clk 0:00:08]}  Qe1# {[%clk 0:00:05]} 0-1


[Site "https://www.chess.com"]

[Event "Titled Tuesday Blitz May 2 Late 2023"]
[White "Topalov, Aleksandar"]
[Black "Vovk, Orest"]
[WhiteFideId "925659"]
[BlackFideId "14113490"]
[WhiteElo "2151"]
[BlackElo "2215"]
[Result "1-0"]
[Round "05"]
[TimeControl "180+2"]
[Date "2023.05.02"]
[WhiteClock "0:00:15"]
[BlackClock "0:00:03"]

1. b3 {[%clk 0:03:00]}  Nf6 {[%clk 0:02:55]} 2. Bb2 {[%clk 0:03:00]}  g6 {[%clk 0:02:54]} 3. Bxf6 {[%clk 0:02:59]}  exf6 {[%clk 0:02:54]} 4. c4 {[%clk 0:03:00]}  Bg7 {[%clk 0:02:54]} 5. Nc3 {[%clk 0:03:00]}  O-O {[%clk 0:02:50]} 6. e3 {[%clk 0:03:01]}  f5 {[%clk 0:02:50]} 7. Nge2 {[%clk 0:03:01]}  b6 {[%clk 0:02:50]} 8. Rc1 {[%clk 0:02:59]}  Bb7 {[%clk 0:02:51]} 9. Nf4 {[%clk 0:02:59]}  Nc6 {[%clk 0:02:50]} 10. d4 {[%clk 0:02:57]}  Ne7 {[%clk 0:02:48]} 11. Be2 {[%clk 0:02:54]}  d5 {[%clk 0:02:46]} 12. Nfxd5 {[%clk 0:02:51]}  Nxd5 {[%clk 0:02:46]} 13. cxd5 {[%clk 0:02:51]}  f4 {[%clk 0:02:36]} 14. e4 {[%clk 0:02:45]}  Qg5 {[%clk 0:02:27]} 15. O-O {[%clk 0:02:40]}  c6 {[%clk 0:02:10]} 16. dxc6 {[%clk 0:02:36]}  Bxc6 {[%clk 0:02:10]} 17. Bf3 {[%clk 0:02:31]}  Rfd8 {[%clk 0:02:03]} 18. Nd5 {[%clk 0:02:23]}  Bxd5 {[%clk 0:01:49]} 19. exd5 {[%clk 0:02:23]}  Qf6 {[%clk 0:01:46]} 20. Rc7 {[%clk 0:02:12]}  Qxd4 {[%clk 0:01:42]} 21. Qxd4 {[%clk 0:02:11]}  Bxd4 {[%clk 0:01:43]} 22. Rfc1 {[%clk 0:01:45]}  Be5 {[%clk 0:01:23]} 23. R7c6 {[%clk 0:01:33]}  Bd6 {[%clk 0:01:18]} 24. Kf1 {[%clk 0:01:25]}  Rab8 {[%clk 0:01:08]} 25. R1c4 {[%clk 0:01:14]}  f5 {[%clk 0:01:02]} 26. h3 {[%clk 0:00:53]}  Rd7 {[%clk 0:01:01]} 27. Rc8+ {[%clk 0:00:52]}  Rxc8 {[%clk 0:01:01]} 28. Rxc8+ {[%clk 0:00:52]}  Kf7 {[%clk 0:01:02]} 29. Rc6 {[%clk 0:00:46]}  Kf6 {[%clk 0:01:00]} 30. a4 {[%clk 0:00:41]}  Ke5 {[%clk 0:00:59]} 31. Ke2 {[%clk 0:00:38]}  g5 {[%clk 0:00:42]} 32. Kd3 {[%clk 0:00:36]}  Rg7 {[%clk 0:00:40]} 33. Rc8 {[%clk 0:00:32]}  Re7 {[%clk 0:00:31]} 34. Rg8 {[%clk 0:00:25]}  Kf6 {[%clk 0:00:28]} 35. Rf8+ {[%clk 0:00:20]}  Ke5 {[%clk 0:00:27]} 36. Rg8 {[%clk 0:00:19]}  Kf6 {[%clk 0:00:13]} 37. Rd8 {[%clk 0:00:17]}  Bc5 {[%clk 0:00:09]} 38. d6 {[%clk 0:00:16]}  Re6 {[%clk 0:00:09]} 39. d7 {[%clk 0:00:15]}  Rd6+ {[%clk 0:00:08]} 40. Ke2 {[%clk 0:00:15]}  Ke7 {[%clk 0:00:08]} 41. Rh8 {[%clk 0:00:14]}  Kxd7 {[%clk 0:00:07]} 42. Rxh7+ {[%clk 0:00:15]}  Ke6 {[%clk 0:00:08]} 43. Rxa7 {[%clk 0:00:13]}  Bb4 {[%clk 0:00:06]} 44. Ra8 {[%clk 0:00:08]}  Rd2+ {[%clk 0:00:05]} 45. Kf1 {[%clk 0:00:09]}  Rb2 {[%clk 0:00:04]} 46. Re8+ {[%clk 0:00:07]}  Kf6 {[%clk 0:00:04]} 47. Rb8 {[%clk 0:00:06]}  Ba5 {[%clk 0:00:01]} 48. Bd5 {[%clk 0:00:04]}  Ke5 {[%clk 0:00:02]} 49. Bc4 {[%clk 0:00:04]}  g4 {[%clk 0:00:01]} 50. hxg4 {[%clk 0:00:04]}  fxg4 {[%clk 0:00:01]} 51. Rg8 {[%clk 0:00:04]}  Kf5 {[%clk 0:00:01]} 52. Rf8+ {[%clk 0:00:03]}  Kg5 {[%clk 0:00:02]} 53. Rg8+ {[%clk 0:00:03]}  Kf5 {[%clk 0:00:02]} 54. Rf8+ {[%clk 0:00:04]}  Ke5 {[%clk 0:00:03]} 55. Re8+ {[%clk 0:00:04]}  Kd4 {[%clk 0:00:03]} 56. Rd8+ {[%clk 0:00:04]}  Kc5 {[%clk 0:00:02]} 57. Rd1 {[%clk 0:00:04]}  Rc2 {[%clk 0:00:02]} 58. Rb1 {[%clk 0:00:04]}  g3 {[%clk 0:00:02]} 59. fxg3 {[%clk 0:00:03]}  fxg3 {[%clk 0:00:03]} 60. Rd1 {[%clk 0:00:03]}  Rf2+ {[%clk 0:00:03]} 61. Kg1 {[%clk 0:00:04]}  Bc3 {[%clk 0:00:03]} 62. Kh1 {[%clk 0:00:04]}  Kb4 {[%clk 0:00:03]} 63. Rc1 {[%clk 0:00:04]}  Bd2 {[%clk 0:00:03]} 64. Rd1 {[%clk 0:00:04]}  Kc3 {[%clk 0:00:04]} 65. Kg1 {[%clk 0:00:04]}  Kc2 {[%clk 0:00:03]} 66. Rf1 {[%clk 0:00:04]}  Be3 {[%clk 0:00:03]} 67. Rxf2+ {[%clk 0:00:04]}  Bxf2+ {[%clk 0:00:04]} 68. Kf1 {[%clk 0:00:05]}  Kc3 {[%clk 0:00:04]} 69. Bd5 {[%clk 0:00:04]}  Kb4 {[%clk 0:00:04]} 70. Be6 {[%clk 0:00:05]}  Kc5 {[%clk 0:00:05]} 71. Bf7 {[%clk 0:00:06]}  Kb4 {[%clk 0:00:05]} 72. Bg8 {[%clk 0:00:07]}  b5 {[%clk 0:00:05]} 73. Bh7 {[%clk 0:00:08]}  bxa4 {[%clk 0:00:05]} 74. bxa4 {[%clk 0:00:06]}  Kxa4 {[%clk 0:00:06]} 75. Bg6 {[%clk 0:00:07]}  Kb4 {[%clk 0:00:07]} 76. Bf5 {[%clk 0:00:08]}  Kc3 {[%clk 0:00:08]} 77. Bg4 {[%clk 0:00:08]}  Kd4 {[%clk 0:00:09]} 78. Bh3 {[%clk 0:00:09]}  Ke5 {[%clk 0:00:10]} 79. Bg4 {[%clk 0:00:10]}  Kf4 {[%clk 0:00:10]} 80. Bf3 {[%clk 0:00:11]}  Kg5 {[%clk 0:00:10]} 81. Bb7 {[%clk 0:00:12]}  Kf6 {[%clk 0:00:11]} 82. Ba8 {[%clk 0:00:13]}  Ke7 {[%clk 0:00:11]} 83. Bb7 {[%clk 0:00:14]}  Kd8 {[%clk 0:00:11]} 84. Ba8 {[%clk 0:00:14]}  Kc7 {[%clk 0:00:12]} 85. Bb7 {[%clk 0:00:15]}  Kxb7 {[%clk 0:00:12]} 86. Ke2 {[%clk 0:00:14]}  Bg1 {[%clk 0:00:10]} 87. Ke1 {[%clk 0:00:14]}  Kc6 {[%clk 0:00:09]} 88. Ke2 {[%clk 0:00:14]}  Kd5 {[%clk 0:00:09]} 89. Kf1 {[%clk 0:00:15]}  Bh2 {[%clk 0:00:05]} 90. Ke2 {[%clk 0:00:15]}  Ke4 {[%clk 0:00:04]} 91. Kf1 {[%clk 0:00:15]}  Ke3 {[%clk 0:00:03]} 92. Ke1 {[%clk 0:00:15]} 1-0


[Site "https://www.chess.com"]

[Event "Titled Tuesday Blitz May 2 Late 2023"]
[White "Mordechai, Hanan"]
[Black "D`Arruda, Ricardo D."]
[WhiteFideId "2804166"]
[BlackFideId "100692"]
[WhiteElo "2324"]
[BlackElo "2271"]
[Result "0-1"]
[Round "05"]
[TimeControl "180+2"]
[Date "2023.05.02"]
[WhiteClock "0:00:03"]
[BlackClock "0:00:22"]

1. c4 {[%clk 0:03:00]}  e5 {[%clk 0:02:59]} 2. g3 {[%clk 0:03:00]}  Nf6 {[%clk 0:02:59]} 3. Bg2 {[%clk 0:03:00]}  Nc6 {[%clk 0:02:59]} 4. Nc3 {[%clk 0:03:00]}  Bb4 {[%clk 0:02:59]} 5. Nd5 {[%clk 0:03:00]}  Bc5 {[%clk 0:02:59]} 6. Nf3 {[%clk 0:02:56]}  d6 {[%clk 0:02:59]} 7. O-O {[%clk 0:02:56]}  Nxd5 {[%clk 0:02:59]} 8. cxd5 {[%clk 0:02:57]}  Ne7 {[%clk 0:02:59]} 9. d4 {[%clk 0:02:57]}  exd4 {[%clk 0:02:59]} 10. Nxd4 {[%clk 0:02:58]}  O-O {[%clk 0:02:59]} 11. a3 {[%clk 0:02:55]}  Nf5 {[%clk 0:02:58]} 12. Nxf5 {[%clk 0:02:52]}  Bxf5 {[%clk 0:02:59]} 13. b4 {[%clk 0:02:52]}  Bb6 {[%clk 0:02:58]} 14. Bb2 {[%clk 0:02:53]}  Re8 {[%clk 0:02:57]} 15. Qd2 {[%clk 0:02:51]}  a5 {[%clk 0:02:55]} 16. Rac1 {[%clk 0:02:48]}  axb4 {[%clk 0:02:54]} 17. axb4 {[%clk 0:02:48]}  Be4 {[%clk 0:02:49]} 18. e3 {[%clk 0:02:34]}  Bxg2 {[%clk 0:02:48]} 19. Kxg2 {[%clk 0:02:34]}  Ra2 {[%clk 0:02:42]} 20. Qc3 {[%clk 0:02:34]}  Qg5 {[%clk 0:02:41]} 21. Rfd1 {[%clk 0:02:20]}  h5 {[%clk 0:02:36]} 22. h4 {[%clk 0:02:19]}  Qg4 {[%clk 0:02:33]} 23. Qb3 {[%clk 0:02:11]}  Raa8 {[%clk 0:02:29]} 24. Rc4 {[%clk 0:02:03]}  Qf5 {[%clk 0:02:23]} 25. Rf4 {[%clk 0:01:57]}  Qg6 {[%clk 0:02:21]} 26. Qc3 {[%clk 0:01:56]}  Re7 {[%clk 0:02:15]} 27. Rf5 {[%clk 0:01:47]}  f6 {[%clk 0:02:10]} 28. Rf4 {[%clk 0:01:46]}  Rae8 {[%clk 0:02:09]} 29. Qd3 {[%clk 0:01:21]}  Qxd3 {[%clk 0:02:05]} 30. Rxd3 {[%clk 0:01:22]}  Re4 {[%clk 0:02:04]} 31. Kf3 {[%clk 0:01:22]}  Rxf4+ {[%clk 0:02:02]} 32. Kxf4 {[%clk 0:01:23]}  Ra8 {[%clk 0:01:58]} 33. Ra3 {[%clk 0:01:09]}  Rxa3 {[%clk 0:01:57]} 34. Bxa3 {[%clk 0:01:09]}  c6 {[%clk 0:01:56]} 35. Ke4 {[%clk 0:00:51]}  Bc7 {[%clk 0:01:43]} 36. Bb2 {[%clk 0:00:47]}  Kf7 {[%clk 0:01:40]} 37. f3 {[%clk 0:00:45]}  g6 {[%clk 0:01:39]} 38. g4 {[%clk 0:00:45]}  Bb6 {[%clk 0:01:30]} 39. Bc1 {[%clk 0:00:27]}  Bc7 {[%clk 0:01:10]} 40. Kd4 {[%clk 0:00:24]}  Bb6+ {[%clk 0:01:08]} 41. Kc4 {[%clk 0:00:24]}  f5 {[%clk 0:01:06]} 42. gxf5 {[%clk 0:00:18]}  gxf5 {[%clk 0:01:07]} 43. e4 {[%clk 0:00:18]}  fxe4 {[%clk 0:01:04]} 44. fxe4 {[%clk 0:00:19]}  Bd8 {[%clk 0:01:04]} 45. Bf4 {[%clk 0:00:17]}  b5+ {[%clk 0:00:55]} 46. Kd4 {[%clk 0:00:13]}  Bb6+ {[%clk 0:00:53]} 47. Kd3 {[%clk 0:00:13]}  cxd5 {[%clk 0:00:51]} 48. exd5 {[%clk 0:00:14]}  Ke7 {[%clk 0:00:50]} 49. Ke4 {[%clk 0:00:15]}  Bf2 {[%clk 0:00:49]} 50. Bg5+ {[%clk 0:00:14]}  Kf7 {[%clk 0:00:49]} 51. Bf4 {[%clk 0:00:13]}  Ke7 {[%clk 0:00:45]} 52. Bg5+ {[%clk 0:00:13]}  Kd7 {[%clk 0:00:45]} 53. Kf5 {[%clk 0:00:14]}  Be1 {[%clk 0:00:45]} 54. Kg6 {[%clk 0:00:14]}  Bxb4 {[%clk 0:00:45]} 55. Kxh5 {[%clk 0:00:14]}  Bc3 {[%clk 0:00:45]} 56. Kg6 {[%clk 0:00:14]}  b4 {[%clk 0:00:45]} 57. h5 {[%clk 0:00:10]}  b3 {[%clk 0:00:45]} 58. Bc1 {[%clk 0:00:11]}  b2 {[%clk 0:00:45]} 59. Bxb2 {[%clk 0:00:11]}  Bxb2 {[%clk 0:00:46]} 60. Kf7 {[%clk 0:00:11]}  Bc1 {[%clk 0:00:44]} 61. Kf6 {[%clk 0:00:10]}  Bf4 {[%clk 0:00:39]} 62. Kf5 {[%clk 0:00:11]}  Bd2 {[%clk 0:00:38]} 63. Kf6 {[%clk 0:00:11]}  Be3 {[%clk 0:00:37]} 64. Kf7 {[%clk 0:00:08]}  Kc7 {[%clk 0:00:36]} 65. Ke6 {[%clk 0:00:06]}  Bf4 {[%clk 0:00:30]} 66. Kf5 {[%clk 0:00:05]}  Bc1 {[%clk 0:00:26]} 67. Ke6 {[%clk 0:00:06]}  Bd2 {[%clk 0:00:24]} 68. Ke7 {[%clk 0:00:05]}  Bf4 {[%clk 0:00:23]} 69. Ke6 {[%clk 0:00:06]}  Kb6 {[%clk 0:00:23]} 70. h6 {[%clk 0:00:06]}  Kc5 {[%clk 0:00:22]} 71. h7 {[%clk 0:00:05]}  Be5 {[%clk 0:00:23]} 72. Kf5 {[%clk 0:00:02]}  Kxd5 {[%clk 0:00:22]} 73. Kg4 {[%clk 0:00:03]}  Ke4 {[%clk 0:00:22]} 0-1


[Site "https://www.chess.com"]

[Event "Titled Tuesday Blitz May 2 Late 2023"]
[White "Guzman Moneo, Alberto"]
[Black "Karas, Marek"]
[WhiteFideId "2209616"]
[BlackFideId "14928558"]
[WhiteElo "2157"]
[BlackElo "2233"]
[Result "0-1"]
[Round "05"]
[TimeControl "180+2"]
[Date "2023.05.02"]
[WhiteClock "0:00:01"]
[BlackClock "0:01:02"]

1. Nf3 {[%clk 0:03:00]}  Nf6 {[%clk 0:02:58]} 2. g3 {[%clk 0:03:00]}  g6 {[%clk 0:02:57]} 3. Bg2 {[%clk 0:03:00]}  Bg7 {[%clk 0:02:57]} 4. O-O {[%clk 0:03:00]}  O-O {[%clk 0:02:57]} 5. c4 {[%clk 0:03:01]}  d6 {[%clk 0:02:57]} 6. Nc3 {[%clk 0:03:00]}  e5 {[%clk 0:02:50]} 7. d3 {[%clk 0:02:58]}  Nc6 {[%clk 0:02:48]} 8. Rb1 {[%clk 0:02:56]}  a5 {[%clk 0:02:47]} 9. a3 {[%clk 0:02:56]}  Bf5 {[%clk 0:02:42]} 10. b4 {[%clk 0:02:49]}  axb4 {[%clk 0:02:43]} 11. axb4 {[%clk 0:02:48]}  Qc8 {[%clk 0:02:41]} 12. b5 {[%clk 0:02:45]}  Ne7 {[%clk 0:02:38]} 13. c5 {[%clk 0:02:26]}  Bh3 {[%clk 0:02:35]} 14. cxd6 {[%clk 0:01:45]}  cxd6 {[%clk 0:02:32]} 15. Ne4 {[%clk 0:01:44]}  Nxe4 {[%clk 0:02:29]} 16. dxe4 {[%clk 0:01:40]}  Bxg2 {[%clk 0:02:28]} 17. Kxg2 {[%clk 0:01:39]}  Rd8 {[%clk 0:02:27]} 18. Bg5 {[%clk 0:01:31]}  f6 {[%clk 0:02:25]} 19. Qb3+ {[%clk 0:01:24]}  Kf8 {[%clk 0:02:13]} 20. Be3 {[%clk 0:01:10]}  Qd7 {[%clk 0:02:08]} 21. Rfc1 {[%clk 0:00:58]}  Rdc8 {[%clk 0:02:08]} 22. Nd2 {[%clk 0:00:41]}  Rxc1 {[%clk 0:02:00]} 23. Rxc1 {[%clk 0:00:35]}  Rc8 {[%clk 0:02:01]} 24. Rc4 {[%clk 0:00:32]}  Qe6 {[%clk 0:01:51]} 25. Qc2 {[%clk 0:00:25]}  Rxc4 {[%clk 0:01:49]} 26. Qxc4 {[%clk 0:00:23]}  Qxc4 {[%clk 0:01:46]} 27. Nxc4 {[%clk 0:00:23]}  d5 {[%clk 0:01:34]} 28. exd5 {[%clk 0:00:22]}  Nxd5 {[%clk 0:01:35]} 29. Nd6 {[%clk 0:00:20]}  Nxe3+ {[%clk 0:01:22]} 30. fxe3 {[%clk 0:00:19]}  Ke7 {[%clk 0:01:14]} 31. Nxb7 {[%clk 0:00:17]}  Kd7 {[%clk 0:01:09]} 32. Nc5+ {[%clk 0:00:14]}  Kd6 {[%clk 0:01:10]} 33. Ne4+ {[%clk 0:00:12]}  Kd5 {[%clk 0:01:04]} 34. b6 {[%clk 0:00:09]}  Kc6 {[%clk 0:01:02]} 35. b7 {[%clk 0:00:01]}  Kxb7 {[%clk 0:01:02]} 0-1


[Site "https://www.chess.com"]

[Event "Titled Tuesday Blitz May 2 Late 2023"]
[White "Bayo Milagro, Alvaro"]
[Black "Ansh M Shah"]
[WhiteFideId "22275240"]
[BlackFideId "25033379"]
[WhiteElo "2270"]
[BlackElo "2084"]
[Result "1-0"]
[Round "05"]
[TimeControl "180+2"]
[Date "2023.05.02"]
[WhiteClock "0:01:32"]
[BlackClock "0:00:35"]

1. Nf3 {[%clk 0:02:55]}  Nf6 {[%clk 0:02:59]} 2. c4 {[%clk 0:02:45]}  e6 {[%clk 0:02:59]} 3. g3 {[%clk 0:02:45]}  d5 {[%clk 0:03:00]} 4. Bg2 {[%clk 0:02:46]}  Be7 {[%clk 0:03:00]} 5. O-O {[%clk 0:02:46]}  O-O {[%clk 0:03:01]} 6. d4 {[%clk 0:02:46]}  c6 {[%clk 0:03:00]} 7. Qc2 {[%clk 0:02:46]}  b6 {[%clk 0:02:52]} 8. Rd1 {[%clk 0:02:46]}  Bb7 {[%clk 0:02:42]} 9. b3 {[%clk 0:02:46]}  Nbd7 {[%clk 0:02:43]} 10. Nc3 {[%clk 0:02:46]}  Rc8 {[%clk 0:02:44]} 11. e4 {[%clk 0:02:46]}  dxe4 {[%clk 0:02:42]} 12. Nxe4 {[%clk 0:02:47]}  Nxe4 {[%clk 0:02:42]} 13. Qxe4 {[%clk 0:02:48]}  Qc7 {[%clk 0:02:42]} 14. Bf4 {[%clk 0:02:47]}  Bd6 {[%clk 0:02:43]} 15. Bxd6 {[%clk 0:02:48]}  Qxd6 {[%clk 0:02:44]} 16. c5 {[%clk 0:02:48]}  Qc7 {[%clk 0:02:20]} 17. b4 {[%clk 0:02:47]}  a5 {[%clk 0:02:19]} 18. a3 {[%clk 0:02:42]}  Nf6 {[%clk 0:02:18]} 19. Qc2 {[%clk 0:02:40]}  Nd5 {[%clk 0:02:17]} 20. Ng5 {[%clk 0:02:30]}  Nf6 {[%clk 0:02:11]} 21. bxa5 {[%clk 0:02:25]}  bxc5 {[%clk 0:02:04]} 22. Qxc5 {[%clk 0:02:26]}  h6 {[%clk 0:02:03]} 23. Nf3 {[%clk 0:02:20]}  Ra8 {[%clk 0:01:59]} 24. Ne5 {[%clk 0:02:15]}  Rxa5 {[%clk 0:01:56]} 25. Qc2 {[%clk 0:02:15]}  Rc8 {[%clk 0:01:38]} 26. Rdc1 {[%clk 0:02:11]}  Qd6 {[%clk 0:01:14]} 27. Nc4 {[%clk 0:02:09]}  Qd8 {[%clk 0:01:11]} 28. Nxa5 {[%clk 0:02:08]}  Qxa5 {[%clk 0:01:12]} 29. a4 {[%clk 0:01:59]}  Ba6 {[%clk 0:01:05]} 30. Qc5 {[%clk 0:01:57]}  Qd2 {[%clk 0:01:03]} 31. Rc2 {[%clk 0:01:55]}  Qd3 {[%clk 0:00:57]} 32. Bf1 {[%clk 0:01:53]}  Ne4 {[%clk 0:00:30]} 33. Bxd3 {[%clk 0:01:51]}  Nxc5 {[%clk 0:00:29]} 34. Bxa6 {[%clk 0:01:42]}  Nxa6 {[%clk 0:00:30]} 35. Rb1 {[%clk 0:01:43]}  Ra8 {[%clk 0:00:16]} 36. Rxc6 {[%clk 0:01:41]}  Kh7 {[%clk 0:00:15]} 37. Rbb6 {[%clk 0:01:40]}  Nb8 {[%clk 0:00:15]} 38. Rc8 {[%clk 0:01:40]}  Nd7 {[%clk 0:00:16]} 39. Rxa8 {[%clk 0:01:39]}  Nxb6 {[%clk 0:00:17]} 40. Ra7 {[%clk 0:01:37]}  Kg6 {[%clk 0:00:16]} 41. a5 {[%clk 0:01:37]}  Nc8 {[%clk 0:00:16]} 42. Rc7 {[%clk 0:01:37]}  Nd6 {[%clk 0:00:16]} 43. a6 {[%clk 0:01:38]}  Nb5 {[%clk 0:00:17]} 44. Rb7 {[%clk 0:01:37]}  Nxd4 {[%clk 0:00:16]} 45. a7 {[%clk 0:01:36]}  Nc6 {[%clk 0:00:15]} 46. a8=Q {[%clk 0:01:36]}  Ne5 {[%clk 0:00:16]} 47. Kg2 {[%clk 0:01:33]}  Ng4 {[%clk 0:00:14]} 48. Qe8 {[%clk 0:01:28]}  Nf6 {[%clk 0:00:14]} 49. Qxf7+ {[%clk 0:01:28]}  Kf5 {[%clk 0:00:15]} 50. Qxf6+ {[%clk 0:01:27]}  gxf6 {[%clk 0:00:15]} 51. Kg1 {[%clk 0:01:27]}  Kg6 {[%clk 0:00:15]} 52. Kf1 {[%clk 0:01:27]}  e5 {[%clk 0:00:16]} 53. Ke2 {[%clk 0:01:27]}  h5 {[%clk 0:00:17]} 54. h3 {[%clk 0:01:28]}  h4 {[%clk 0:00:17]} 55. g4 {[%clk 0:01:27]}  Kg5 {[%clk 0:00:18]} 56. Kf3 {[%clk 0:01:26]}  f5 {[%clk 0:00:18]} 57. gxf5 {[%clk 0:01:26]}  Kxf5 {[%clk 0:00:19]} 58. Kg2 {[%clk 0:01:27]}  Kf4 {[%clk 0:00:19]} 59. Kg1 {[%clk 0:01:27]}  Kf3 {[%clk 0:00:19]} 60. Rc7 {[%clk 0:01:27]}  e4 {[%clk 0:00:19]} 61. Rc3+ {[%clk 0:01:27]}  Kf4 {[%clk 0:00:20]} 62. Re3 {[%clk 0:01:27]}  Kf5 {[%clk 0:00:20]} 63. Kf1 {[%clk 0:01:27]}  Kf4 {[%clk 0:00:21]} 64. Ke1 {[%clk 0:01:28]}  Kf5 {[%clk 0:00:21]} 65. Kd1 {[%clk 0:01:28]}  Kf4 {[%clk 0:00:22]} 66. Kc1 {[%clk 0:01:29]}  Ke5 {[%clk 0:00:21]} 67. Kb1 {[%clk 0:01:30]}  Kd4 {[%clk 0:00:22]} 68. Ka1 {[%clk 0:01:30]}  Ke5 {[%clk 0:00:22]} 69. Ka2 {[%clk 0:01:31]}  Kf4 {[%clk 0:00:23]} 70. Ka3 {[%clk 0:01:31]}  Kf5 {[%clk 0:00:24]} 71. Ka4 {[%clk 0:01:32]}  Ke5 {[%clk 0:00:25]} 72. Ka5 {[%clk 0:01:32]}  Kf4 {[%clk 0:00:26]} 73. Kb6 {[%clk 0:01:33]}  Kf5 {[%clk 0:00:26]} 74. Kc5 {[%clk 0:01:33]}  Ke5 {[%clk 0:00:27]} 75. Kc4 {[%clk 0:01:33]}  Kf4 {[%clk 0:00:28]} 76. Kd4 {[%clk 0:01:34]}  Kf5 {[%clk 0:00:29]} 77. Rxe4 {[%clk 0:01:34]}  Kg5 {[%clk 0:00:29]} 78. Rg4+ {[%clk 0:01:34]}  Kf5 {[%clk 0:00:30]} 79. Kd5 {[%clk 0:01:34]}  Kf6 {[%clk 0:00:30]} 80. Rf4+ {[%clk 0:01:33]}  Kg5 {[%clk 0:00:31]} 81. Ke5 {[%clk 0:01:33]}  Kh5 {[%clk 0:00:31]} 82. Rg4 {[%clk 0:01:33]}  Kh6 {[%clk 0:00:32]} 83. Kf5 {[%clk 0:01:33]}  Kh5 {[%clk 0:00:33]} 84. f3 {[%clk 0:01:32]}  Kh6 {[%clk 0:00:33]} 85. Kf6 {[%clk 0:01:32]}  Kh5 {[%clk 0:00:34]} 86. f4 {[%clk 0:01:32]}  Kh6 {[%clk 0:00:35]} 87. Rxh4# {[%clk 0:01:32]} 1-0


[Site "https://www.chess.com"]

[Event "Titled Tuesday Blitz May 2 Late 2023"]
[White "Graif, William"]
[Black "Ferriz Barrios, Andres"]
[WhiteFideId "2609835"]
[BlackFideId "5104467"]
[WhiteElo "2205"]
[BlackElo "2102"]
[Result "1-0"]
[Round "05"]
[TimeControl "180+2"]
[Date "2023.05.02"]
[WhiteClock "0:00:24"]
[BlackClock "0:02:09"]

1. e4 {[%clk 0:03:00]}  e6 {[%clk 0:02:58]} 2. d4 {[%clk 0:02:59]}  d5 {[%clk 0:02:59]} 3. Be3 {[%clk 0:02:59]}  dxe4 {[%clk 0:02:59]} 4. f3 {[%clk 0:02:58]}  exf3 {[%clk 0:02:58]} 5. Nxf3 {[%clk 0:02:56]}  Nd7 {[%clk 0:02:59]} 6. Bd3 {[%clk 0:02:50]}  Ngf6 {[%clk 0:03:00]} 7. O-O {[%clk 0:02:48]}  Bd6 {[%clk 0:03:00]} 8. Qe1 {[%clk 0:02:47]}  O-O {[%clk 0:03:01]} 9. Qh4 {[%clk 0:02:47]}  Re8 {[%clk 0:03:00]} 10. Nc3 {[%clk 0:02:20]}  c6 {[%clk 0:02:55]} 11. Ng5 {[%clk 0:01:33]}  h6 {[%clk 0:02:55]} 12. Nce4 {[%clk 0:01:18]}  Nxe4 {[%clk 0:02:37]} 13. Qxe4 {[%clk 0:01:15]}  f5 {[%clk 0:02:38]} 14. Rxf5 {[%clk 0:00:56]}  exf5 {[%clk 0:02:32]} 15. Bc4+ {[%clk 0:00:44]}  Kh8 {[%clk 0:02:30]} 16. Nf7+ {[%clk 0:00:42]}  Kh7 {[%clk 0:02:30]} 17. Qxf5+ {[%clk 0:00:37]}  g6 {[%clk 0:02:29]} 18. Qh3 {[%clk 0:00:28]}  Nb6 {[%clk 0:02:09]} 19. Qxh6+ {[%clk 0:00:24]}  Kg8 {[%clk 0:02:09]} 20. Qh8# {[%clk 0:00:24]} 1-0


[Site "https://www.chess.com"]